[Event "Titled Tuesday Blitz March 29 Late 2022"]
[White "Gurevich, Dmitry"]
[Black "Rustemov, Alexander"]
[WhiteFideId "2000407"]
[BlackFideId "4119002"]
[WhiteElo "2506"]
[BlackElo "2762"]
[Result "0-1"]
[Round "02"]
[TimeControl "180+1"]
[Date "2022.03.29"]
[WhiteClock "0:00:32"]
[BlackClock "0:01:20"]

1. d4 {[%clk 0:03:00]}  d5 {[%clk 0:02:58]} 2. c4 {[%clk 0:03:00]}  dxc4 {[%clk 0:02:58]} 3. e3 {[%clk 0:03:00]}  Nf6 {[%clk 0:02:57]} 4. Bxc4 {[%clk 0:03:00]}  a6 {[%clk 0:02:58]} 5. a4 {[%clk 0:02:58]}  e6 {[%clk 0:02:54]} 6. Nf3 {[%clk 0:02:58]}  b6 {[%clk 0:02:54]} 7. O-O {[%clk 0:02:57]}  Bb7 {[%clk 0:02:55]} 8. Nc3 {[%clk 0:02:57]}  Bb4 {[%clk 0:02:54]} 9. Qe2 {[%clk 0:02:57]}  O-O {[%clk 0:02:54]} 10. Rd1 {[%clk 0:02:56]}  Nbd7 {[%clk 0:02:53]} 11. Bd2 {[%clk 0:02:56]}  Qe7 {[%clk 0:02:52]} 12. Be1 {[%clk 0:02:52]}  Rfd8 {[%clk 0:02:51]} 13. Bb3 {[%clk 0:02:39]}  c5 {[%clk 0:02:49]} 14. Rac1 {[%clk 0:02:30]}  Rac8 {[%clk 0:02:46]} 15. Bc4 {[%clk 0:02:28]}  Ra8 {[%clk 0:02:35]} 16. Na2 {[%clk 0:02:21]}  Bxe1 {[%clk 0:02:34]} 17. Rxe1 {[%clk 0:02:19]}  Bxf3 {[%clk 0:02:31]} 18. Qxf3 {[%clk 0:02:19]}  cxd4 {[%clk 0:02:31]} 19. exd4 {[%clk 0:02:18]}  Qd6 {[%clk 0:02:31]} 20. Rcd1 {[%clk 0:02:11]}  Nf8 {[%clk 0:02:30]} 21. Nc3 {[%clk 0:02:03]}  Ng6 {[%clk 0:02:27]} 22. Ne4 {[%clk 0:01:58]}  Nxe4 {[%clk 0:02:25]} 23. Qxe4 {[%clk 0:01:59]}  Ne7 {[%clk 0:02:25]} 24. b3 {[%clk 0:01:57]}  a5 {[%clk 0:02:23]} 25. g3 {[%clk 0:01:55]}  g6 {[%clk 0:02:14]} 26. Kg2 {[%clk 0:01:54]}  Ra7 {[%clk 0:02:09]} 27. f3 {[%clk 0:01:53]}  Rad7 {[%clk 0:02:08]} 28. Bb5 {[%clk 0:01:50]}  Rc7 {[%clk 0:02:08]} 29. Bc4 {[%clk 0:01:47]}  Nd5 {[%clk 0:02:07]} 30. Kf2 {[%clk 0:01:33]}  Nc3 {[%clk 0:02:06]} 31. Qe3 {[%clk 0:01:28]}  Nxd1+ {[%clk 0:02:05]} 32. Rxd1 {[%clk 0:01:28]}  Kg7 {[%clk 0:02:02]} 33. f4 {[%clk 0:01:25]}  Rcd7 {[%clk 0:01:55]} 34. h4 {[%clk 0:01:24]}  h5 {[%clk 0:01:49]} 35. Rd2 {[%clk 0:01:20]}  Qe7 {[%clk 0:01:48]} 36. Bb5 {[%clk 0:01:06]}  Rd6 {[%clk 0:01:48]} 37. Qe4 {[%clk 0:00:48]}  Qf6 {[%clk 0:01:47]} 38. Ke3 {[%clk 0:00:48]}  Qf5 {[%clk 0:01:37]} 39. Qxf5 {[%clk 0:00:48]}  gxf5 {[%clk 0:01:37]} 40. Bc4 {[%clk 0:00:48]}  Kf6 {[%clk 0:01:36]} 41. Rd3 {[%clk 0:00:47]}  Rg8 {[%clk 0:01:34]} 42. Kf3 {[%clk 0:00:46]}  Rdd8 {[%clk 0:01:31]} 43. Rd2 {[%clk 0:00:45]}  Rg7 {[%clk 0:01:30]} 44. Rd1 {[%clk 0:00:44]}  Rdg8 {[%clk 0:01:29]} 45. Rg1 {[%clk 0:00:44]}  Ke7 {[%clk 0:01:30]} 46. Rg2 {[%clk 0:00:39]}  Kd6 {[%clk 0:01:30]} 47. Rg1 {[%clk 0:00:38]}  Rg4 {[%clk 0:01:30]} 48. Rg2 {[%clk 0:00:37]}  R8g7 {[%clk 0:01:30]} 49. Kf2 {[%clk 0:00:36]}  f6 {[%clk 0:01:29]} 50. Kf3 {[%clk 0:00:35]}  e5 {[%clk 0:01:21]} 51. dxe5+ {[%clk 0:00:33]}  fxe5 {[%clk 0:01:21]} 52. Rd2+ {[%clk 0:00:33]}  Ke7 {[%clk 0:01:20]} 53. fxe5 {[%clk 0:00:32]}  Rxg3+ {[%clk 0:01:19]} 54. Kf4 {[%clk 0:00:32]}  R7g4+ {[%clk 0:01:19]} 55. Kxf5 {[%clk 0:00:32]}  Rf3# {[%clk 0:01:20]} 0-1


[Site "https://www.chess.com"]

[Event "Titled Tuesday Blitz March 29 Late 2022"]
[White "Hambleton, Aman"]
[Black "Vovk, Orest"]
[WhiteFideId "2606577"]
[BlackFideId "14113490"]
[WhiteElo "2552"]
[BlackElo "2203"]
[Result "1-0"]
[Round "02"]
[TimeControl "180+1"]
[Date "2022.03.30"]
[WhiteClock "0:00:05"]
[BlackClock "0:00:08"]

1. d4 {[%clk 0:02:59]}  h6 {[%clk 0:02:55]} 2. c4 {[%clk 0:02:56]}  g5 {[%clk 0:02:54]} 3. e4 {[%clk 0:02:48]}  Bg7 {[%clk 0:02:54]} 4. Nc3 {[%clk 0:02:47]}  c5 {[%clk 0:02:54]} 5. d5 {[%clk 0:02:47]}  Bxc3+ {[%clk 0:02:52]} 6. bxc3 {[%clk 0:02:48]}  d6 {[%clk 0:02:53]} 7. f3 {[%clk 0:01:55]}  Qa5 {[%clk 0:02:51]} 8. Bd2 {[%clk 0:01:50]}  f5 {[%clk 0:02:50]} 9. h4 {[%clk 0:01:46]}  g4 {[%clk 0:02:30]} 10. fxg4 {[%clk 0:01:47]}  fxe4 {[%clk 0:02:30]} 11. Nh3 {[%clk 0:01:33]}  Nf6 {[%clk 0:02:28]} 12. g5 {[%clk 0:01:32]}  hxg5 {[%clk 0:02:23]} 13. hxg5 {[%clk 0:01:31]}  Ng4 {[%clk 0:02:21]} 14. Be2 {[%clk 0:01:27]}  Ne5 {[%clk 0:02:12]} 15. Bh5+ {[%clk 0:00:42]}  Kd8 {[%clk 0:02:10]} 16. O-O {[%clk 0:00:43]}  e3 {[%clk 0:01:53]} 17. Bxe3 {[%clk 0:00:20]}  Qxc3 {[%clk 0:01:47]} 18. Qe2 {[%clk 0:00:18]}  Bxh3 {[%clk 0:01:42]} 19. gxh3 {[%clk 0:00:17]}  Rxh5 {[%clk 0:01:39]} 20. Rac1 {[%clk 0:00:06]}  Qd3 {[%clk 0:01:27]} 21. Qxh5 {[%clk 0:00:06]}  Qxe3+ {[%clk 0:01:27]} 22. Kg2 {[%clk 0:00:06]}  Nbd7 {[%clk 0:01:09]} 23. Qh8+ {[%clk 0:00:06]}  Kc7 {[%clk 0:01:09]} 24. Qxa8 {[%clk 0:00:07]}  Qxg5+ {[%clk 0:01:08]} 25. Kh1 {[%clk 0:00:06]}  Qh4 {[%clk 0:00:57]} 26. Rc3 {[%clk 0:00:05]}  Qe4+ {[%clk 0:00:48]} 27. Kh2 {[%clk 0:00:05]}  Qe2+ {[%clk 0:00:35]} 28. Kg1 {[%clk 0:00:05]}  Qd2 {[%clk 0:00:28]} 29. Rb3 {[%clk 0:00:05]}  Qd4+ {[%clk 0:00:24]} 30. Kh2 {[%clk 0:00:03]}  Qd2+ {[%clk 0:00:20]} 31. Kh1 {[%clk 0:00:03]}  Nb6 {[%clk 0:00:16]} 32. Qe8 {[%clk 0:00:03]}  Qg5 {[%clk 0:00:13]} 33. Qf8 {[%clk 0:00:02]}  Nbxc4 {[%clk 0:00:09]} 34. Qf4 {[%clk 0:00:01]}  Qh5 {[%clk 0:00:07]} 35. Qf5 {[%clk 0:00:02]}  Qh4 {[%clk 0:00:06]} 36. Qf4 {[%clk 0:00:01]}  Qh5 {[%clk 0:00:06]} 37. Kg2 {[%clk 0:00:01]}  Qe2+ {[%clk 0:00:05]} 38. Rf2 {[%clk 0:00:02]}  Qd1 {[%clk 0:00:04]} 39. h4 {[%clk 0:00:02]}  Qxd5+ {[%clk 0:00:04]} 40. Kh2 {[%clk 0:00:02]}  Qg8 {[%clk 0:00:05]} 41. Rg3 {[%clk 0:00:02]}  Qh7 {[%clk 0:00:03]} 42. Qg5 {[%clk 0:00:03]}  Nb6 {[%clk 0:00:01]} 43. h5 {[%clk 0:00:03]}  Nbd7 {[%clk 0:00:01]} 44. h6 {[%clk 0:00:03]}  Qb1 {[%clk 0:00:02]} 45. Qg7 {[%clk 0:00:03]}  Qe1 {[%clk 0:00:02]} 46. Kg2 {[%clk 0:00:03]}  Qe4+ {[%clk 0:00:02]} 47. Kh2 {[%clk 0:00:04]}  Qb1 {[%clk 0:00:02]} 48. h7 {[%clk 0:00:04]}  Qe1 {[%clk 0:00:03]} 49. Rfg2 {[%clk 0:00:04]}  Qe4 {[%clk 0:00:03]} 50. h8=Q {[%clk 0:00:04]}  Qf4 {[%clk 0:00:03]} 51. Qxe7 {[%clk 0:00:04]}  Nf3+ {[%clk 0:00:04]} 52. Kh1 {[%clk 0:00:02]}  Qc1+ {[%clk 0:00:05]} 53. Rg1 {[%clk 0:00:03]}  Nxg1 {[%clk 0:00:05]} 54. Rxg1 {[%clk 0:00:04]}  Qd2 {[%clk 0:00:05]} 55. Rg2 {[%clk 0:00:04]}  Qd5 {[%clk 0:00:05]} 56. Qhg7 {[%clk 0:00:04]}  Qd1+ {[%clk 0:00:06]} 57. Kh2 {[%clk 0:00:04]}  Qa4 {[%clk 0:00:06]} 58. Rf2 {[%clk 0:00:04]}  Qc6 {[%clk 0:00:07]} 59. Rf7 {[%clk 0:00:04]}  Kb6 {[%clk 0:00:08]} 60. Qxd7 {[%clk 0:00:04]}  Qd5 {[%clk 0:00:08]} 61. Qxb7+ {[%clk 0:00:05]} 1-0


[Site "https://www.chess.com"]

[Event "Titled Tuesday Blitz March 29 Late 2022"]
[White "Hardaway, Brewington"]
[Black "Dubov, Daniil"]
[WhiteFideId "30941849"]
[BlackFideId "24126055"]
[WhiteElo "1768"]
[BlackElo "2791"]
[Result "0-1"]
[Round "02"]
[TimeControl "180+1"]
[Date "2022.03.29"]
[WhiteClock "0:00:03"]
[BlackClock "0:00:15"]

1. Nf3 {[%clk 0:03:00]}  d5 {[%clk 0:02:59]} 2. c4 {[%clk 0:03:00]}  d4 {[%clk 0:02:57]} 3. e3 {[%clk 0:03:00]}  Nc6 {[%clk 0:02:55]} 4. a3 {[%clk 0:02:53]}  e5 {[%clk 0:02:54]} 5. d3 {[%clk 0:02:51]}  a5 {[%clk 0:02:50]} 6. g3 {[%clk 0:02:48]}  Nf6 {[%clk 0:02:46]} 7. Bg2 {[%clk 0:02:46]}  dxe3 {[%clk 0:02:44]} 8. Bxe3 {[%clk 0:02:46]}  Ng4 {[%clk 0:02:43]} 9. O-O {[%clk 0:02:39]}  Bf5 {[%clk 0:02:36]} 10. d4 {[%clk 0:02:30]}  exd4 {[%clk 0:02:25]} 11. Nxd4 {[%clk 0:02:29]}  Nxe3 {[%clk 0:02:24]} 12. fxe3 {[%clk 0:02:28]}  Nxd4 {[%clk 0:02:20]} 13. exd4 {[%clk 0:02:26]}  Bxb1 {[%clk 0:02:15]} 14. Rxb1 {[%clk 0:02:23]}  c6 {[%clk 0:02:13]} 15. d5 {[%clk 0:01:56]}  Be7 {[%clk 0:01:51]} 16. dxc6 {[%clk 0:01:50]}  Qb6+ {[%clk 0:01:49]} 17. Kh1 {[%clk 0:01:49]}  bxc6 {[%clk 0:01:50]} 18. Qf3 {[%clk 0:01:49]}  O-O {[%clk 0:01:47]} 19. Qxc6 {[%clk 0:01:48]}  Rab8 {[%clk 0:01:36]} 20. Qxb6 {[%clk 0:01:40]}  Rxb6 {[%clk 0:01:36]} 21. Bd5 {[%clk 0:01:40]}  g6 {[%clk 0:01:33]} 22. Kg2 {[%clk 0:01:26]}  Kg7 {[%clk 0:01:32]} 23. Rf3 {[%clk 0:01:04]}  f5 {[%clk 0:01:28]} 24. b4 {[%clk 0:00:48]}  axb4 {[%clk 0:01:25]} 25. axb4 {[%clk 0:00:47]}  Rxb4 {[%clk 0:01:23]} 26. Rxb4 {[%clk 0:00:48]}  Bxb4 {[%clk 0:01:23]} 27. Rb3 {[%clk 0:00:48]}  Bc5 {[%clk 0:01:21]} 28. Rb7+ {[%clk 0:00:48]}  Kh6 {[%clk 0:01:18]} 29. Rb5 {[%clk 0:00:45]}  Rc8 {[%clk 0:01:17]} 30. Be6 {[%clk 0:00:43]}  Rc7 {[%clk 0:01:16]} 31. Bd5 {[%clk 0:00:43]}  Kg5 {[%clk 0:01:14]} 32. h4+ {[%clk 0:00:40]}  Kf6 {[%clk 0:01:13]} 33. Rb7 {[%clk 0:00:40]}  Rc8 {[%clk 0:01:06]} 34. Rxh7 {[%clk 0:00:39]}  Rb8 {[%clk 0:01:02]} 35. Rb7 {[%clk 0:00:36]}  Re8 {[%clk 0:01:00]} 36. Rf7+ {[%clk 0:00:34]}  Ke5 {[%clk 0:00:58]} 37. Kf3 {[%clk 0:00:35]}  Bd6 {[%clk 0:00:50]} 38. Rb7 {[%clk 0:00:30]}  Kd4 {[%clk 0:00:49]} 39. Rb3 {[%clk 0:00:30]}  Re1 {[%clk 0:00:47]} 40. Kf2 {[%clk 0:00:29]}  Rc1 {[%clk 0:00:46]} 41. Rb2 {[%clk 0:00:27]}  Bc5 {[%clk 0:00:44]} 42. Rb5 {[%clk 0:00:20]}  Bd6 {[%clk 0:00:43]} 43. Rb2 {[%clk 0:00:19]}  Rc3 {[%clk 0:00:42]} 44. Rd2+ {[%clk 0:00:19]}  Kc5 {[%clk 0:00:40]} 45. Re2 {[%clk 0:00:17]}  Bxg3+ {[%clk 0:00:37]} 46. Kg2 {[%clk 0:00:17]}  Bxh4 {[%clk 0:00:37]} 47. Re6 {[%clk 0:00:18]}  g5 {[%clk 0:00:35]} 48. Re5 {[%clk 0:00:15]}  f4 {[%clk 0:00:32]} 49. Be6+ {[%clk 0:00:16]}  Kd4 {[%clk 0:00:31]} 50. Rd5+ {[%clk 0:00:16]}  Ke4 {[%clk 0:00:24]} 51. Bf5+ {[%clk 0:00:09]}  Ke3 {[%clk 0:00:24]} 52. Bg4 {[%clk 0:00:10]}  f3+ {[%clk 0:00:18]} 53. Kh3 {[%clk 0:00:09]}  f2 {[%clk 0:00:16]} 54. Kg2 {[%clk 0:00:09]}  Rc1 {[%clk 0:00:15]} 55. Rf5 {[%clk 0:00:03]}  Rg1+ {[%clk 0:00:15]} 0-1


[Site "https://www.chess.com"]

[Event "Titled Tuesday Blitz March 29 Late 2022"]
[White "Hjartarson, Johann"]
[Black "Fedoseev, Vladimir"]
[WhiteFideId "2300044"]
[BlackFideId "24130737"]
[WhiteElo "2450"]
[BlackElo "2726"]
[Result "1-0"]
[Round "02"]
[TimeControl "180+1"]
[Date "2022.03.29"]
[WhiteClock "0:00:09"]
[BlackClock "0:00:01"]

1. e4 {[%clk 0:03:00]}  c5 {[%clk 0:02:57]} 2. Nf3 {[%clk 0:03:00]}  Nc6 {[%clk 0:02:53]} 3. Nc3 {[%clk 0:02:59]}  e5 {[%clk 0:02:52]} 4. Bc4 {[%clk 0:02:58]}  d6 {[%clk 0:02:53]} 5. d3 {[%clk 0:02:58]}  Be7 {[%clk 0:02:53]} 6. a4 {[%clk 0:02:54]}  Nf6 {[%clk 0:02:52]} 7. h3 {[%clk 0:02:52]}  O-O {[%clk 0:02:50]} 8. O-O {[%clk 0:02:51]}  Na5 {[%clk 0:02:38]} 9. Ba2 {[%clk 0:02:49]}  Be6 {[%clk 0:02:38]} 10. Bg5 {[%clk 0:02:47]}  Bxa2 {[%clk 0:02:25]} 11. Rxa2 {[%clk 0:02:46]}  Ne8 {[%clk 0:02:25]} 12. Bxe7 {[%clk 0:02:42]}  Qxe7 {[%clk 0:02:22]} 13. Nd5 {[%clk 0:02:40]}  Qd8 {[%clk 0:02:19]} 14. c3 {[%clk 0:02:39]}  Nc6 {[%clk 0:02:13]} 15. b4 {[%clk 0:02:36]}  cxb4 {[%clk 0:02:11]} 16. cxb4 {[%clk 0:02:35]}  Nf6 {[%clk 0:02:06]} 17. Nxf6+ {[%clk 0:02:33]}  Qxf6 {[%clk 0:02:06]} 18. Qb3 {[%clk 0:02:32]}  Nd8 {[%clk 0:02:03]} 19. Qd5 {[%clk 0:02:26]}  Qe7 {[%clk 0:01:59]} 20. Rc1 {[%clk 0:02:20]}  Ne6 {[%clk 0:01:59]} 21. g3 {[%clk 0:02:19]}  h6 {[%clk 0:01:48]} 22. Rac2 {[%clk 0:02:18]}  Kh7 {[%clk 0:01:47]} 23. d4 {[%clk 0:02:04]}  f6 {[%clk 0:01:46]} 24. h4 {[%clk 0:02:01]}  Rad8 {[%clk 0:01:35]} 25. Kg2 {[%clk 0:02:00]}  Qd7 {[%clk 0:01:28]} 26. b5 {[%clk 0:01:27]}  b6 {[%clk 0:00:49]} 27. Rc3 {[%clk 0:01:15]}  Rfe8 {[%clk 0:00:48]} 28. dxe5 {[%clk 0:01:13]}  fxe5 {[%clk 0:00:48]} 29. Ng1 {[%clk 0:01:05]}  Nc5 {[%clk 0:00:46]} 30. f3 {[%clk 0:00:50]}  Qe7 {[%clk 0:00:36]} 31. Nh3 {[%clk 0:00:49]}  Rd7 {[%clk 0:00:33]} 32. Rc4 {[%clk 0:00:42]}  Rf8 {[%clk 0:00:34]} 33. R1c3 {[%clk 0:00:39]}  Ne6 {[%clk 0:00:30]} 34. Rc8 {[%clk 0:00:35]}  Rdd8 {[%clk 0:00:28]} 35. Rxd8 {[%clk 0:00:34]}  Rxd8 {[%clk 0:00:29]} 36. Nf2 {[%clk 0:00:29]}  Rf8 {[%clk 0:00:27]} 37. Ng4 {[%clk 0:00:28]}  Nd4 {[%clk 0:00:18]} 38. Rd3 {[%clk 0:00:21]}  h5 {[%clk 0:00:17]} 39. Nf2 {[%clk 0:00:20]}  Qf6 {[%clk 0:00:17]} 40. f4 {[%clk 0:00:17]}  Rc8 {[%clk 0:00:16]} 41. Nh3 {[%clk 0:00:13]}  Rc2+ {[%clk 0:00:16]} 42. Kf1 {[%clk 0:00:12]}  Rc1+ {[%clk 0:00:15]} 43. Kf2 {[%clk 0:00:12]}  Rc2+ {[%clk 0:00:15]} 44. Kf1 {[%clk 0:00:13]}  Ne6 {[%clk 0:00:12]} 45. Qxe6 {[%clk 0:00:11]}  Qxe6 {[%clk 0:00:07]} 46. Ng5+ {[%clk 0:00:11]}  Kg6 {[%clk 0:00:08]} 47. Nxe6 {[%clk 0:00:12]}  Kf6 {[%clk 0:00:09]} 48. Ng5 {[%clk 0:00:12]}  Ke7 {[%clk 0:00:08]} 49. fxe5 {[%clk 0:00:11]}  dxe5 {[%clk 0:00:09]} 50. Rd5 {[%clk 0:00:11]}  Rc4 {[%clk 0:00:09]} 51. Rxe5+ {[%clk 0:00:11]}  Kd7 {[%clk 0:00:09]} 52. Rd5+ {[%clk 0:00:11]}  Ke7 {[%clk 0:00:09]} 53. e5 {[%clk 0:00:11]}  Rxa4 {[%clk 0:00:04]} 54. e6 {[%clk 0:00:12]}  a6 {[%clk 0:00:05]} 55. Rd7+ {[%clk 0:00:12]}  Ke8 {[%clk 0:00:04]} 56. Rxg7 {[%clk 0:00:12]}  axb5 {[%clk 0:00:04]} 57. Nh7 {[%clk 0:00:12]}  Kd8 {[%clk 0:00:01]} 58. e7+ {[%clk 0:00:09]} 1-0


[Site "https://www.chess.com"]

[Event "Titled Tuesday Blitz March 29 Late 2022"]
[White "Hnydiuk, Aleksander"]
[Black "Petrova, Irina"]
[WhiteFideId "1109057"]
[BlackFideId "14124122"]
[WhiteElo "2374"]
[BlackElo "1993"]
[Result "0-1"]
[Round "02"]
[TimeControl "180+1"]
[Date "2022.03.30"]
[WhiteClock "0:00:01"]
[BlackClock "0:00:40"]

1. e4 {[%clk 0:03:00]}  d6 {[%clk 0:03:00]} 2. d4 {[%clk 0:03:00]}  Nf6 {[%clk 0:03:01]} 3. Nc3 {[%clk 0:03:00]}  e5 {[%clk 0:03:01]} 4. Nf3 {[%clk 0:03:00]}  Nbd7 {[%clk 0:03:01]} 5. g4 {[%clk 0:03:00]}  d5 {[%clk 0:03:00]} 6. dxe5 {[%clk 0:02:22]}  Nxe4 {[%clk 0:02:57]} 7. Qxd5 {[%clk 0:02:08]}  Nxc3 {[%clk 0:02:49]} 8. bxc3 {[%clk 0:02:09]}  c6 {[%clk 0:02:49]} 9. Qd3 {[%clk 0:01:58]}  Qa5 {[%clk 0:02:41]} 10. Bf4 {[%clk 0:01:52]}  Nc5 {[%clk 0:02:39]} 11. Qe3 {[%clk 0:01:32]}  Bxg4 {[%clk 0:02:39]} 12. Rg1 {[%clk 0:01:23]}  Bxf3 {[%clk 0:02:32]} 13. Qxf3 {[%clk 0:01:22]}  Ne6 {[%clk 0:02:33]} 14. Bc4 {[%clk 0:01:04]}  Nxf4 {[%clk 0:02:23]} 15. Qxf4 {[%clk 0:01:05]}  Qxc3+ {[%clk 0:02:22]} 16. Ke2 {[%clk 0:01:05]}  O-O-O {[%clk 0:02:17]} 17. Bd3 {[%clk 0:00:51]}  g6 {[%clk 0:02:06]} 18. Rab1 {[%clk 0:00:46]}  Bg7 {[%clk 0:01:56]} 19. Qg4+ {[%clk 0:00:42]}  Kb8 {[%clk 0:01:54]} 20. f4 {[%clk 0:00:42]}  f6 {[%clk 0:01:43]} 21. Qe6 {[%clk 0:00:36]}  Rxd3 {[%clk 0:00:59]} 22. cxd3 {[%clk 0:00:34]}  Qc2+ {[%clk 0:00:59]} 23. Ke3 {[%clk 0:00:33]}  Rd8 {[%clk 0:00:57]} 24. Rb3 {[%clk 0:00:27]}  fxe5 {[%clk 0:00:53]} 25. Rgb1 {[%clk 0:00:23]}  exf4+ {[%clk 0:00:51]} 26. Kf3 {[%clk 0:00:13]}  Rxd3+ {[%clk 0:00:49]} 27. Kg4 {[%clk 0:00:03]}  Qg2+ {[%clk 0:00:47]} 28. Kxf4 {[%clk 0:00:02]}  Qf3+ {[%clk 0:00:43]} 29. Kg5 {[%clk 0:00:01]}  Rd5+ {[%clk 0:00:40]} 0-1


[Site "https://www.chess.com"]

[Event "Titled Tuesday Blitz March 29 Late 2022"]
[White "Hoffmann, Asa"]
[Black "Bilan, Danila"]
[WhiteFideId "2001470"]
[BlackFideId "24161918"]
[WhiteElo "2117"]
[BlackElo "2164"]
[Result "0-1"]
[Round "02"]
[TimeControl "180+1"]
[Date "2022.03.30"]
[WhiteClock "0:00:05"]
[BlackClock "0:00:14"]

1. d4 {[%clk 0:02:57]}  d5 {[%clk 0:03:00]} 2. Bg5 {[%clk 0:02:56]}  c5 {[%clk 0:02:58]} 3. dxc5 {[%clk 0:02:55]}  f6 {[%clk 0:02:55]} 4. Bh4 {[%clk 0:02:51]}  e5 {[%clk 0:02:53]} 5. e4 {[%clk 0:02:50]}  d4 {[%clk 0:02:48]} 6. Nf3 {[%clk 0:02:49]}  Nc6 {[%clk 0:02:45]} 7. Bc4 {[%clk 0:02:45]}  Bxc5 {[%clk 0:02:32]} 8. c3 {[%clk 0:02:44]}  Nh6 {[%clk 0:02:04]} 9. cxd4 {[%clk 0:02:37]}  Nxd4 {[%clk 0:01:56]} 10. Nxe5 {[%clk 0:02:30]}  Qa5+ {[%clk 0:01:53]} 11. Nc3 {[%clk 0:02:27]}  fxe5 {[%clk 0:00:47]} 12. Qh5+ {[%clk 0:02:26]}  Kf8 {[%clk 0:00:43]} 13. O-O {[%clk 0:01:33]}  Be6 {[%clk 0:00:33]} 14. Bxe6 {[%clk 0:01:18]}  Nxe6 {[%clk 0:00:33]} 15. Qxe5 {[%clk 0:01:17]}  Re8 {[%clk 0:00:26]} 16. Nd5 {[%clk 0:01:10]}  Nf7 {[%clk 0:00:23]} 17. Qg3 {[%clk 0:01:06]}  Bd6 {[%clk 0:00:22]} 18. f4 {[%clk 0:01:03]}  Nc7 {[%clk 0:00:14]} 19. Rad1 {[%clk 0:01:01]}  Nxd5 {[%clk 0:00:14]} 20. Rxd5 {[%clk 0:01:00]}  Qb6+ {[%clk 0:00:14]} 21. Kh1 {[%clk 0:01:00]}  Be7 {[%clk 0:00:15]} 22. Bxe7+ {[%clk 0:00:53]}  Rxe7 {[%clk 0:00:16]} 23. b3 {[%clk 0:00:53]}  g6 {[%clk 0:00:16]} 24. f5 {[%clk 0:00:52]}  Qa6 {[%clk 0:00:14]} 25. Rfd1 {[%clk 0:00:47]}  Kg7 {[%clk 0:00:14]} 26. Qc3+ {[%clk 0:00:46]}  Qf6 {[%clk 0:00:13]} 27. Qb4 {[%clk 0:00:38]}  Rhe8 {[%clk 0:00:13]} 28. R5d4 {[%clk 0:00:35]}  b6 {[%clk 0:00:09]} 29. h3 {[%clk 0:00:34]}  Ng5 {[%clk 0:00:07]} 30. Rd7 {[%clk 0:00:30]}  Nf7 {[%clk 0:00:03]} 31. R1d4 {[%clk 0:00:25]}  gxf5 {[%clk 0:00:02]} 32. exf5 {[%clk 0:00:24]}  Re1+ {[%clk 0:00:02]} 33. Kh2 {[%clk 0:00:23]}  Qe5+ {[%clk 0:00:03]} 34. Rf4 {[%clk 0:00:22]}  Re4 {[%clk 0:00:03]} 35. Qxe4 {[%clk 0:00:21]}  Qxe4 {[%clk 0:00:04]} 36. Rxe4 {[%clk 0:00:20]}  Rxe4 {[%clk 0:00:05]} 37. Rxa7 {[%clk 0:00:20]}  Kf6 {[%clk 0:00:06]} 38. g4 {[%clk 0:00:20]}  Rb4 {[%clk 0:00:03]} 39. Kg3 {[%clk 0:00:18]}  h6 {[%clk 0:00:04]} 40. Kf3 {[%clk 0:00:15]}  Ne5+ {[%clk 0:00:04]} 41. Ke3 {[%clk 0:00:15]}  Rb5 {[%clk 0:00:04]} 42. Kd2 {[%clk 0:00:14]}  Rd5+ {[%clk 0:00:04]} 43. Kc3 {[%clk 0:00:14]}  Rd6 {[%clk 0:00:05]} 44. a4 {[%clk 0:00:13]}  Nf3 {[%clk 0:00:06]} 45. b4 {[%clk 0:00:13]}  Ng5 {[%clk 0:00:06]} 46. h4 {[%clk 0:00:13]}  Ne4+ {[%clk 0:00:07]} 47. Kc4 {[%clk 0:00:13]}  Nd2+ {[%clk 0:00:07]} 48. Kb5 {[%clk 0:00:13]}  Nf3 {[%clk 0:00:08]} 49. g5+ {[%clk 0:00:12]}  hxg5 {[%clk 0:00:08]} 50. hxg5+ {[%clk 0:00:12]}  Nxg5 {[%clk 0:00:09]} 51. a5 {[%clk 0:00:12]}  bxa5 {[%clk 0:00:09]} 52. bxa5 {[%clk 0:00:12]}  Kxf5 {[%clk 0:00:09]} 53. Ra6 {[%clk 0:00:11]}  Rd5+ {[%clk 0:00:09]} 54. Kb6 {[%clk 0:00:11]}  Ne6 {[%clk 0:00:10]} 55. Ra8 {[%clk 0:00:10]}  Ke5 {[%clk 0:00:10]} 56. a6 {[%clk 0:00:10]}  Rd6+ {[%clk 0:00:10]} 57. Kb5 {[%clk 0:00:09]}  Nc7+ {[%clk 0:00:10]} 58. Ka5 {[%clk 0:00:08]}  Nxa8 {[%clk 0:00:11]} 59. Kb5 {[%clk 0:00:07]}  Rb6+ {[%clk 0:00:12]} 60. Ka5 {[%clk 0:00:07]}  Kd6 {[%clk 0:00:13]} 61. a7 {[%clk 0:00:07]}  Kc5 {[%clk 0:00:14]} 62. Ka4 {[%clk 0:00:05]}  Kc4 {[%clk 0:00:14]} 0-1


[Site "https://www.chess.com"]